Cogmind - Beta 10.2 @@@ ROGUE MODE // 2021.04.23 @ 11:30:24 Player: Officer C4 Result: Destroyed by G-47 Trooper with Particle Gun Performance ------------- Evolutions (0) 0 Regions Visited (2) 400 Robots Destroyed (17) 85 Value Destroyed (334) 334 Prototype IDs (4) 80 Alien Tech Used (0) 0 Bonus (0) 0 TOTAL SCORE: 899 Bonus ------- None Cogmind --------- Core Integrity 0/250 Matter 292/300 Energy 98/100 System Corruption 1% Temperature Cool (9) Movement Rolling (120) Ox2 Location -10/Mines Parts ------- > --- POWER (1) -------- (None) > --- PROPULSION (2) --- Compact Wheel > --- UTILITY (2) ------ Large Storage Unit Large Storage Unit > --- WEAPON (2) ------- Assault Rifle Autogun > --- INVENTORY (16) --- Light Ion Engine Light Treads Light Treads Wheel Wheel Wheel Wheel Medium Storage Unit Medium Storage Unit Improved Targeting Computer Small Laser Autogun Bore Cannon Grenade Launcher Peak State ------------ > --- POWER ------------ Light Nuclear Core > --- PROPULSION ------- Aluminum Leg Aluminum Leg > --- UTILITY ---------- Large Storage Unit Large Storage Unit > --- WEAPON ----------- Autogun Mace > --- INVENTORY -------- Light Ion Engine Light Ion Engine Light Treads Light Treads Wheel Wheel Compact Wheel Compact Wheel Medium Storage Unit Medium Storage Unit Improved Targeting Computer Small Laser Assault Rifle Autogun Grenade Launcher [Rating: 12] Favorites ----------- Power Light Ion Engine Engine Light Ion Engine Power Core Light Nuclear Core Propulsion Aluminum Leg Leg Aluminum Leg Wheel Compact Wheel Utility Large Storage Unit Storage Large Storage Unit Weapon EM Pulse Gun Energy Gun EM Pulse Gun Ballistic Gun Assault Rifle Impact Weapon Mace Slashing Weapon Mining Claw Build | -11 -10 -10 ------- Run | Scr Mat Min Slots Evolved . | . . . Power . | . . . Propulsion . | . . . Utility . | . . . Weapon . | . . . Parts Attached 19 | 7 8 4 Power 3 | 1 1 1 Engine 2 | 1 . 1 Core 1 | . 1 . Reactor . | . . . Propulsion 4 | 2 2 . Treads . | . . . Leg 2 | 2 . . Wheel 2 | . 2 . Hover . | . . . Flight . | . . . Utility 4 | 2 2 . Device . | . . . Storage 4 | 2 2 . Processor . | . . . Hackware . | . . . Protection . | . . . Artifact . | . . . Weapon 8 | 2 3 3 Energy Gun 3 | 2 1 . Energy Cannon . | . . . Ballistic Gun 3 | . 1 2 Ballistic Cannon . | . . . Launcher . | . . . Special Weapon . | . . . Impact Weapon 1 | . 1 . Slashing Weapon 1 | . . 1 Piercing Weapon . | . . . Special Melee Weapon . | . . . Unidentified Prototypes . | . . . Parts Lost 7 | . 3 4 Power 2 | . 1 1 Propulsion 2 | . 1 1 Utility . | . . . Weapon 3 | . 1 2 Highest Loss Streak 3 | . 3 3 Average Slot Usage (%) 96 | . 95 98 Engine 7 | . 3 13 Core 3 | . 6 . Leg 13 | . 22 . Wheel 14 | . 5 27 Storage 28 | . 28 28 Energy Gun 14 | . 14 13 Ballistic Gun 3 | . 1 6 Impact Weapon 9 | . 12 5 Slashing Weapon 1 | . . 2 Naked Turns . | . . . Heaviest Build 42 | 14 42 39 Greatest Support 32 | 20 32 32 Greatest Overweight (x) 4 | . 4 2 Average Overweight (x) 1 | . 1 1 Largest Inventory Capacity 16 | 8 16 16 Average Capacity 15 | 5 15 16 Most Carried 16 | 6 16 15 Average Carried 12 | 4 12 14 Final Capacity 16 | 8 16 16 Final Carried 14 | 6 14 14 Class Distribution -------------------- 100% | Mutant Dominant Class ---------------- Mutant | -10/Materials Mutant | -10/Mines Resources | -11 -10 -10 ----------- Run | Scr Mat Min Matter Collected 492 | 270 106 116 Remotely . | . . . Salvage Created 597 | 128 342 127 Parts 39 | 6 22 11 Haulers Intercepted . | . . . Recyclers Shooed 2 | 1 . 1 Parts Field Recycled . | . . . Retrieved Matter . | . . . Parts Self-Destructed . | . . . Prevented . | . . . Kills | -11 -10 -10 ------- Run | Scr Mat Min Combat Hostiles Destroyed 9 | . 7 2 Guns 9 | . 7 2 Classes Destroyed 7 | 2 3 2 Worker 1 | . . 1 Builder 1 | . . 1 Tunneler 2 | 1 . 1 Recycler 2 | 1 1 . Watcher 2 | . 2 . Swarmer 3 | . 3 . Grunt 6 | . 4 2 Best Kill Streak 4 | 2 4 2 Combat Bots Only 3 | . 3 1 Max Kills in Single Turn 1 | 1 1 1 Gunslinging . | . . . Exploded . | . . . Melee . | . . . Uniques/NPCs Destroyed . | . . . Combat | -11 -10 -10 -------- Run | Scr Mat Min Damage Taken 943 | . 548 395 Core 261 | . 116 145 Absorbed by Shields . | . . . Core Remaining (%) 100 | 100 . . Volleys Fired 83 | 6 55 22 Largest 2 | 2 2 2 Hottest 80 | 80 80 60 Shots Fired 103 | 12 56 35 Gun 103 | 12 56 35 Cannon . | . . . Launcher . | . . . Special . | . . . Kinetic 38 | . 17 21 Thermal 7 | 6 1 . Explosive . | . . . Electromagnetic 58 | 6 38 14 Robot Hit Streak 8 | 1 8 8 Robot Miss Streak 4 | 4 2 2 Penetration Max . | . . . Secondary Targets 1 | . . 1 Max Gunslinging Chain 1 | . . 1 Shots Hit Robots 73 | 3 44 26 Core Hits 27 | 3 18 6 Critical Hits . | . . . Critical Kills . | . . . Critical Parts Destroyed . | . . . Melee Attacks 2 | . . 2 Impact 2 | . . 2 Slashing . | . . . Piercing . | . . . Sneak Attacks 2 | . . 2 Combat Hostiles . | . . . Follow-up Attacks . | . . . Damage Inflicted 1307 | 37 745 525 Guns 1002 | 37 631 334 Cannons . | . . . Explosions 171 | . 114 57 Melee 134 | . . 134 Ramming . | . . . Kinetic 381 | . 205 176 Thermal 181 | . 124 57 Explosive . | . . . Electromagnetic 611 | 37 416 158 Impact 134 | . . 134 Slashing . | . . . Piercing . | . . . Highest Corruption 1 | . 1 1 Average Corruption 1 | . 1 1 Corruption Purged . | . . . Effects 2 | . 1 1 Message Errors 1 | . 1 . Energy Discharges 1 | . . 1 Overload Shots . | . . . Overflow Damage 64 | . 10 54 Projectiles . | . . . Explosions 10 | . 10 . Melee 54 | . . 54 Knockbacks 2 | . . 2 Impact 2 | . . 2 Kinetic . | . . . Secondary . | . . . Self-Inflicted Damage 107 | . 67 40 Shots 3 | . 2 1 Rammed . | . . . Targets Rammed . | . . . Kicked . | . . . Crushed . | . . . Highest Temperature 72 | 72 54 54 Average Temperature 23 | 32 20 25 Received Heat Transfer 438 | . 234 204 Siege Activations . | . . . Robots Corrupted . | . . . Combat Hostiles . | . . . Parts Fried 5 | . 4 1 Impact Corruptions 2 | . . 2 Robots Melted . | . . . Combat Hostiles . | . . . Parts Melted . | . . . Heat Transferred 275 | . 175 100 Parts Sabotaged . | . . . Parts Stolen . | . . . Parts Stripped . | . . . Power Chain Reactions 4 | . 3 1 Missiles Intercepted . | . . . Alert | -11 -10 -10 ------- Run | Scr Mat Min Peak Influence 174 | 10 174 68 Initial 49 | . 6 49 Average 53 | 3 62 48 Maximum Alert Level . | . . . Low Security (%) 100 | 100 100 100 Level 1 . | . . . Level 2 . | . . . Level 3 . | . . . Level 4 . | . . . Level 5 . | . . . High Security . | . . . Max Security . | . . . Squads Dispatched 2 | . 2 . Investigation 1 | . 1 . Extermination . | . . . Reinforcement 1 | . 1 . Assault . | . . . Garrison . | . . . Intercept . | . . . Construction Impeded . | . . . Haulers Reinforced . | . . . Stealth | -11 -10 -10 --------- Run | Scr Mat Min Distress Signals . | . . . Communications Jammed . | . . . Distress Signals . | . . . Times Spotted 18 | . 13 5 Peak Tracking Total 4 | . 4 2 Tactical Retreats 1 | . 1 . Traps | -11 -10 -10 ------- Run | Scr Mat Min Traps Triggered 2 | . 2 . Indirectly . | . . . Trap Hack Attempts . | . . . Triggered . | . . . Disarmed . | . . . Reprogrammed . | . . . Reused . | . . . Traps Extracted . | . . . Installed . | . . . Triggered . | . . . Machines | -11 -10 -10 ---------- Run | Scr Mat Min Machines Disabled 1 | . . 1 Max in Single Turn 1 | . . 1 Machines Sabotaged . | . . . Garrisons Compromised . | . . . Overloaded Fab Kills . | . . . Fab Network Shutdowns . | . . . Hacking | -11 -10 -10 --------- Run | Scr Mat Min Machines Accessed 6 | . 5 1 Terminals 6 | . 5 1 Fabricators . | . . . Repair Stations . | . . . Recycling Units . | . . . Scanalyzers . | . . . Garrison Access . | . . . Total Hacks 15 | . 13 2 Successful 5 | . 4 1 Failed 10 | . 9 1 Catastrophic . | . . . Database Lockouts . | . . . Manual . | . . . Terminals 15 | . 13 2 Fabricators . | . . . Repair Stations . | . . . Recycling Units . | . . . Scanalyzers . | . . . Garrison Access . | . . . Terminal Hacks 5 | . 4 1 Prototype ID Bank 2 | . 2 . Branch Access Points 1 | . 1 . Locate Traps 1 | . 1 . Dispatch Records 1 | . . 1 Fabricator Hacks . | . . . Repair Station Hacks . | . . . Recycling Unit Hacks . | . . . Scanalyzer . | . . . Garrison Access Hacks . | . . . Unauthorized Hacks . | . . . Terminals . | . . . Fabricators . | . . . Repair Stations . | . . . Recycling Units . | . . . Scanalyzers . | . . . Garrison Access . | . . . Data Cores Recovered . | . . . Used . | . . . Hacking Detections 5 | . 5 . Full Trace Events 1 | . 1 . Feedback Events . | . . . Feedback Blocked . | . . . Robot Schematics Acquired . | . . . Robots Built . | . . . Matter . | . . . Time . | . . . Total Robot Build Rating . | . . . Part Schematics Acquired . | . . . Parts Built . | . . . Matter . | . . . Time . | . . . Total Part Build Rating . | . . . Parts Repaired . | . . . Time . | . . . Parts Recycled . | . . . Recycled Matter . | . . . Retrieved Matter . | . . . Retrieved Components . | . . . Parts Scanalyzed . | . . . Part Schematics Acquired . | . . . Parts Damaged . | . . . Bothacking | -11 -10 -10 ------------ Run | Scr Mat Min Used RIF Installer . | . . . Robots Hacked . | . . . Non-combat . | . . . Combat . | . . . Robot Hacks Applied . | . . . Relay Couplers Released . | . . . Robots Rewired . | . . . Allies Hacked . | . . . Hacks Repelled . | . . . Allies | -11 -10 -10 -------- Run | Scr Mat Min Total Allies . | . . . Largest Group . | . . . Highest-Rated Group . | . . . Highest-Rated Ally . | . . . Total Orders . | . . . Ally Attacks . | . . . Total Damage . | . . . Kills . | . . . Allies Corrupted . | . . . Allies Melted . | . . . Intel | -11 -10 -10 ------- Run | Scr Mat Min Robot Analysis Total . | . . . Derelict Logs Recovered 2 | . . 2 Drone Launches . | . . . Drone Recoveries . | . . . Exploration | -11 -10 -10 ------------- Run | Scr Mat Min Turns Passed 1312 | 94 728 490 Spaces Moved 803 | 60 376 367 Core 19 | 19 . . Treads . | . . . Legs 306 | 41 265 . Wheels 478 | . 111 367 Hover . | . . . Flight . | . . . Fastest Speed 50 | 50 110 110 Average Speed 127 | 97 149 110 Slowest Speed 240 | 120 240 120 Overloaded Moves . | . . . Propulsion Burnouts . | . . . Robots Hopped . | . . . Cave-ins Triggered . | . . . Exploration Rate (%) 44 | 4 50 79 Regions Visited 2 Branch Regions 1 Pre-discovered Areas 1 | . . 1 Known Exits Taken 1 | . 1 . Unknown Exits Taken 1 | 1 . . Scrap Searched 1 | . . 1 Spaces Dug . | . . . Terrain Destroyed 12 | . 7 5 Melee . | . . . Projectile . | . . . AOE 12 | . 7 5 Terrain Rammed . | . . . Walls Destroyed . | . . . Machines Disabled . | . . . Actions | -11 -10 -10 --------- Run | Scr Mat Min Total 990 | 82 489 419 Wait 53 | . 34 19 Move 801 | 59 375 367 Hop . | . . . Pick Up 27 | 10 13 4 Fast Attach 3 | 3 . . Attach 12 | 4 4 4 Detach 1 | . 1 . Swap 4 | . 4 . Drop 4 | . 3 1 Fire 83 | 6 55 22 Melee 2 | . . 2 Ram . | . . . Kick . | . . . Crush . | . . . Escape Stasis . | . . . Rewire . | . . . Trap . | . . . Miscellaneous . | . . . Route ------- -11/Scrapyard -10/Materials (discovered 2 exits: [*Mat] / *Min) -10/Mines (discovered 2 exits: [*Mat x2]) History --------- Turn | Location | Event 12 | -11/Scrapyard | Discovered new exit (range 15) 95 | -11/Scrapyard | Entered Materials 314 | -10/Materials | Build established: Mutant 421 | -10/Materials | Discovered new exit (range 11) 610 | -10/Materials | Discovered new exit (range 12) 699 | -10/Materials | Lost 3 parts (1p1n1w) 789 | -10/Materials | Identified exit to Mines 823 | -10/Materials | Entered Mines 869 | -10/Mines | Met a Derelict bent on vengeance 898 | -10/Mines | Learned Materials emergency access door positions 913 | -10/Mines | A weapon hastily lodged in a ceiling crevice suddenly fell to the ground 928 | -10/Mines | Learned location of Zion (-7) 967 | -10/Mines | Discovered new exit (range 11) 1013 | -10/Mines | Joined a pair of Derelicts in attacking an 0b10 outpost 1117 | -10/Mines | Core integrity fell below 50% 1304 | -10/Mines | Core integrity fell below 20% 1309 | -10/Mines | Discovered new exit (range 6) 1313 | -10/Mines | Destroyed by G-47 Trooper with Particle Gun Last Messages --------------- U-05 Engineer lays Concrete. DO-VOX(g): "TASTE MY VENGEANCE!" U-05 Engineer builds a Wall. U-05 Engineer lays Concrete. U-05 Engineer destroyed. Acquired 3 matter. Destroyed Wheel. Sml. Matter Pod fried. K-01 Serf destroyed. Acquired 6 matter. Com. Wheel destroyed. EM Pulse Gun destroyed. G-34 Mercenary IFF system glitched. Lgt. Ion Engine destroyed. G-34 Mercenary destroyed. Switching to secondary target: G-47 Trooper. Core Extractor disabled. Acquired 44 matter. EXIT=FOUND Acquired 6 matter. Map ----- +----------------------------------------------------+ | ??????????????????????????????#####?????? | | ??????????????????????????????# ?????? | | ??????????????????????????????# ????? | | ?????????????????????????????## """ ????? | | ????????????????????????????? """ ???? | | ??????????????????????????????# """ #### | | ??????????????????????????????# | | ??????????????????????????????# ## # | | ??????????????????????????????#######?# # | | ??????????????????????????????????????# # | | ??????????????????????????????????????# # | | ???????????? ?????????????????????????# # | | ??????????# ?????????????????????????# | | ??????????? ?????????????????????????### | | ??????????? ??????????????????????????? | | ???????????? ??????????????????????????? | | ???????????? ????????##????????????????? | | ????????????# ??????? ????????????????? | | ????????????# ??????? #????????????????? | | ????????????# ??????? #????????????????? | | ?????????#### #?????# #????????????####? | | ?????????# ???## ##??????????## ## | | ?????????# "" ??## ###???????## | | ?????????# """ ### ###????## | | ?????????# """ g """ ##??## | | ?????????# @ """ #??# # | | ?????????# # """ #??# ## | | ?????????# < # #??# ## | | ?????????# ?## ##??# # | | ?????????# ??# ##??## # | | ?????????# ???## ####???# ## | | ?????????#####????# ##??????# ##? | | ?????????????????## ##???????## ##? | | ????????????????## ##?????????## ## | | ???????????????## ##??????????### | | ???????????????# ##???????????## | | ???????????????# #????????????## | | ???????????????# #?????????????## | | ??????????????## ##?????????????### | | ??????????????# ##??#########???? | | ??????????????# ##?# """ #???? | | ??????????????## #?# """ ##### | | ???????????????##### #?# """ | | ???????????????????# #?# | | ???????????????????# ##?# # ### | | ???????????????????## ##??######### #?? | | ????????????????????## ##############!#?# | | ?????????????????????# % !|%=### | | ?????????????????????################! | | ????????????????????????????????????##### | +----------------------------------------------------+ Best States ------------- Heat Dissipation 25 Energy Generation 14 Energy Capacity 160 Matter Stores 300 Matter Capacity 300 Sight Range 16 Terrain Scan Density 10 Evasion (%) 50 Item Schematics ----------------- None Robot Schematics ------------------ None Fabricated ------------ Nothing Alien Tech Used ----------------- None Achievements -------------- None Challenges ------------ None Game ------ Seed PowerHardenedDeconstructor Manual? 0 Play Time 00:15:47 Cumulative 18.9 hours Start 2021.04.23 @ 11:13:14 End 2021.04.23 @ 11:30:24 Sessions 1 Manual Loads 0 Difficulty Rogue Special Mode None Game No. 22 Rogue 22 Adventurer 0 Explorer 0 Win Type - Total 0 Types 0/0/0/0/0/0/0/0/0 Lore% 20 Gallery% 24 Achievement% 18 Wizard Run 0 Options --------- ASCII 0 Keyboard 0 Movement Mouse Keybinds 0 Fullscreen 1 Font 18/SmallcapsGlow Map View 76x50 Tactical HUD 0 Map Filters NONE Filters NONE Steam 1 RUN: 4cbafc3d-601d-4f09-aa69-541d2344742f